bitfinex-derivatives/quotes_BTCF0:USTF0_20250510
["timestamp","ask_amount","ask_price","bid_price","bid_amount"]
[1746877112943,0.12322922,103610.0,103600.0,3.43956368]
[1746877113144,0.12422922,103610.0,103600.0,3.43956368]
[1746877114039,0.002,103610.0,103600.0,3.43956368]
[1746877117944,0.002,103610.0,103600.0,3.36906163]
[1746877118144,0.002,103610.0,103600.0,3.43956368]
[1746877118348,0.002,103610.0,103600.0,3.51006573]
[1746877119240,0.002,103610.0,103600.0,3.34406573]
[1746877120247,0.002,103610.0,103600.0,3.51006573]
[1746877121349,0.002,103610.0,103600.0,3.64598573]
[1746877123145,0.00923,103610.0,103600.0,3.64598573]
[1746877124748,0.00923,103610.0,103600.0,3.50498163]
[1746877125045,0.00923,103610.0,103600.0,1.7408412]
[1746877125046,0.27273455,103610.0,103600.0,1.7408412]
[1746877125239,0.43553455,103610.0,103600.0,1.2204412]
[1746877125439,0.6558325,103610.0,103600.0,0.29]
[1746877125642,0.72633455,103610.0,103600.0,0.29]
[1746877126043,0.1930212,103600.0,103590.0,0.47312064]
[1746877126245,0.35922325,103600.0,103590.0,1.49974064]
[1746877127148,0.52522325,103600.0,103590.0,1.49974064]
[1746877127343,0.52522325,103600.0,103590.0,1.50074064]
[1746877127744,0.4547212,103600.0,103590.0,1.50074064]
[1746877127944,0.4547212,103600.0,103590.0,1.50174064]
[1746877128649,0.4547212,103600.0,103590.0,1.53424064]
[1746877130151,0.2887212,103600.0,103590.0,1.53424064]
[1746877130450,0.6495212,103600.0,103590.0,1.53424064]
[1746877131054,0.77175042,103600.0,103590.0,1.53424064]
[1746877131956,0.77175042,103600.0,103590.0,1.46844064]
[1746877132138,0.93775042,103600.0,103590.0,1.46844064]
[1746877132450,1.00825247,103600.0,103590.0,1.46844064]
[1746877132668,1.00825247,103600.0,103590.0,1.33252064]
[1746877133250,0.77175042,103600.0,103590.0,1.33252064]
[1746877134452,0.77175042,103600.0,103590.0,0.95590064]
[1746877136258,0.90767042,103600.0,103590.0,0.95590064]
[1746877136448,0.91745055,103600.0,103590.0,0.95590064]
[1746877136952,0.91745055,103600.0,103590.0,0.90764084]
[1746877137155,1.05845465,103600.0,103590.0,0.66635634]
[1746877137354,1.05845465,103600.0,103590.0,0.60939614]
[1746877137355,0.86572338,103600.0,103590.0,0.60939614]
[1746877139155,1.03172338,103600.0,103590.0,0.60939614]
[1746877140267,0.9879526,103600.0,103590.0,0.60939614]
[1746877142864,0.9879526,103600.0,103590.0,0.41635634]
[1746877144062,0.86572338,103600.0,103590.0,0.41635634]
[1746877145560,0.86572338,103600.0,103590.0,0.60939614]
[1746877145963,0.87572338,103600.0,103590.0,0.60939614]
[1746877147259,0.87572338,103600.0,103590.0,0.41635634]
[1746877148855,0.86572338,103600.0,103590.0,0.41635634]
[1746877149056,0.87572338,103600.0,103590.0,0.41635634]
[1746877150459,0.94622543,103600.0,103590.0,0.30635634]
[1746877150651,1.11622543,103600.0,103590.0,0.30635634]
[1746877151359,0.97522133,103600.0,103590.0,0.30635634]
[1746877151563,1.04572338,103600.0,103590.0,0.30635634]
[1746877151757,1.11622543,103600.0,103590.0,0.30635634]
[1746877152061,0.98030543,103600.0,103590.0,0.30635634]
[1746877152264,1.18160338,103600.0,103590.0,0.30635634]
[1746877154764,1.18160338,103600.0,103590.0,0.49939614]
[1746877155460,1.18160338,103600.0,103590.0,0.90871614]
[1746877155661,1.3282844,103600.0,103590.0,0.94191614]
[1746877156071,1.1482844,103600.0,103590.0,1.10791614]
[1746877156373,1.07774235,103600.0,103590.0,1.10791614]
[1746877156669,1.1482444,103600.0,103590.0,1.13981614]
[1746877156874,1.0123644,103600.0,103590.0,1.16981614]
[1746877157570,0.94186235,103600.0,103590.0,1.16981614]
[1746877157771,1.0123644,103600.0,103590.0,1.16981614]
[1746877158270,0.86568338,103600.0,103590.0,1.16981614]
[1746877161176,0.79518133,103600.0,103590.0,1.16981614]
[1746877161671,0.86568338,103600.0,103590.0,1.16981614]
[1746877162685,1.00568338,103600.0,103590.0,1.13981614]
[1746877163090,1.00568338,103600.0,103590.0,0.92981614]
[1746877163583,1.26618543,103600.0,103590.0,0.248]
[1746877164188,1.26618543,103600.0,103590.0,0.082]
[1746877165185,1.43218543,103600.0,103590.0,0.082]
[1746877166191,1.07138543,103600.0,103590.0,0.082]
[1746877166386,1.85079751,103600.0,103590.0,0.082]
[1746877168182,1.68479751,103600.0,103590.0,0.082]
[1746877168589,1.54379341,103600.0,103590.0,0.082]
[1746877168782,1.68479751,103600.0,103590.0,0.082]
[1746877168984,1.78132551,103600.0,103590.0,0.082]
[1746877169281,1.94732551,103600.0,103590.0,0.082]
[1746877169481,1.85079751,103600.0,103590.0,0.082]
[1746877169688,1.94732551,103600.0,103590.0,0.082]
[1746877169888,1.88951343,103600.0,103590.0,0.082]
[1746877170393,2.57101343,103600.0,103590.0,0.082]
[1746877170594,2.47448543,103600.0,103590.0,0.082]
[1746877172394,2.64151548,103600.0,103590.0,0.082]
[1746877172599,2.57101343,103600.0,103590.0,0.082]
[1746877174591,2.47448543,103600.0,103590.0,0.082]
[1746877174896,2.57101343,103600.0,103590.0,0.082]
[1746877176094,2.40501343,103600.0,103590.0,0.082]
[1746877177295,2.46234607,103600.0,103590.0,0.082]
[1746877177491,2.36581807,103600.0,103590.0,0.082]
[1746877177795,2.46234607,103600.0,103590.0,0.082]
[1746877180498,2.36581807,103600.0,103590.0,0.082]
[1746877181188,2.76930858,103600.0,103590.0,0.082]
[1746877182400,2.60330858,103600.0,103590.0,0.082]
[1746877183598,2.46742858,103600.0,103590.0,0.082]
[1746877183800,2.60326858,103600.0,103590.0,0.082]
[1746877184001,2.73910858,103600.0,103590.0,0.082]
[1746877184197,2.73910858,103600.0,103590.0,0.248]
[1746877184606,2.73910858,103600.0,103590.0,0.247]
[1746877184900,2.8212647,103600.0,103590.0,0.248]
[1746877185109,2.8212647,103600.0,103590.0,0.082]
[1746877185405,2.8192647,103600.0,103590.0,0.081]
[1746877185601,2.8192647,103600.0,103590.0,0.083]
[1746877187003,2.8264947,103600.0,103590.0,0.083]
[1746877188404,2.50884807,103600.0,103590.0,0.083]
[1746877189407,2.50884807,103600.0,103590.0,0.45962]
[1746877190804,2.50884807,103600.0,103590.0,0.083]
[1746877191101,2.50884807,103600.0,103590.0,0.003]
[1746877191305,2.50884807,103600.0,103590.0,0.37962]
[1746877195913,2.59856858,103600.0,103590.0,0.37962]
[1746877198403,2.45151543,103600.0,103590.0,0.37962]
[1746877201002,2.52201748,103600.0,103590.0,0.2622737]
[1746877201214,2.52201748,103600.0,103590.0,0.2232521]
[1746877201412,2.52201748,103600.0,103590.0,0.1563224]
[1746877201614,2.52201748,103600.0,103580.0,0.0302]
[1746877201615,0.289567,103590.0,103580.0,0.1563224]
[1746877201816,1.3635991,103590.0,103580.0,0.1563224]
[1746877202512,1.5238991,103590.0,103580.0,0.1563224]
[1746877204216,1.5238991,103590.0,103580.0,0.1879224]
[1746877204815,1.5258991,103590.0,103580.0,0.2218224]
[1746877205316,1.5258991,103590.0,103580.0,0.1919224]
[1746877205508,1.5331391,103590.0,103580.0,0.1919224]
[1746877206211,1.5331391,103590.0,103580.0,0.3579224]
[1746877206516,2.2146391,103590.0,103580.0,0.3579224]
[1746877206716,2.3616507,103590.0,103580.0,0.3579224]
[1746877207517,2.3758556,103590.0,103580.0,0.3263224]
[1746877208118,2.3758556,103590.0,103580.0,0.1603224]
[1746877209414,2.228844,103590.0,103580.0,0.1603224]
[1746877210407,2.228844,103590.0,103580.0,0.1910224]
[1746877212224,2.068544,103590.0,103580.0,0.3570224]
[1746877212523,2.068544,103590.0,103580.0,0.3263224]
[1746877213116,2.068544,103590.0,103580.0,0.1603224]
[1746877215015,2.068544,103590.0,103580.0,0.1583224]
[1746877215414,0.1930771,103570.0,103560.0,0.02094413]
[1746877215725,1.6789412,103570.0,103560.0,0.11559979]
[1746877215922,1.67153915,103570.0,103560.0,0.11559979]
[1746877216119,1.7420412,103570.0,103560.0,0.176]
[1746877216322,1.7420412,103570.0,103560.0,0.2329976]
[1746877216714,1.7430412,103570.0,103560.0,0.2359976]
[1746877217122,1.7430412,103570.0,103560.0,0.0699976]
[1746877217629,1.7440412,103570.0,103560.0,0.0719976]
[1746877218124,1.7440412,103570.0,103560.0,0.0115068]
[1746877218327,0.193133,103540.0,103530.0,0.01851382]
[1746877218621,0.193133,103540.0,103530.0,0.46166552]
[1746877218622,0.76007505,103540.0,103530.0,0.46166552]
[1746877218821,0.76007505,103540.0,103530.0,0.49176552]
[1746877219227,0.92007505,103540.0,103530.0,0.46461382]
[1746877219630,0.95207505,103540.0,103530.0,0.52681382]
[1746877219829,0.95307505,103540.0,103530.0,0.52781382]
[1746877220529,0.95407505,103540.0,103530.0,0.53181382]
[1746877221231,0.95407505,103540.0,103530.0,0.72496552]
[1746877222621,0.95407505,103540.0,103530.0,0.53181382]
[1746877222822,0.96391146,103540.0,103530.0,0.72496552]
[1746877223624,0.96391146,103540.0,103530.0,0.53181382]
[1746877224825,0.80391146,103540.0,103530.0,0.53181382]
[1746877225430,0.82391146,103540.0,103530.0,0.53181382]
[1746877225628,0.85441146,103540.0,103530.0,0.53181382]
[1746877225925,0.92491351,103540.0,103530.0,0.53181382]
[1746877226125,1.07491351,103540.0,103530.0,0.53181382]
[1746877226834,1.27491351,103540.0,103530.0,0.26726001]
[1746877227030,1.30561351,103540.0,103530.0,0.28726001]
[1746877229037,1.16460941,103540.0,103530.0,0.28726001]
[1746877229337,1.01561351,103540.0,103530.0,0.28726001]
[1746877229927,1.18561351,103540.0,103530.0,0.28526001]
[1746877230330,1.18561351,103540.0,103530.0,0.28426001]
[1746877230824,1.18561351,103540.0,103530.0,0.25416001]
[1746877231029,1.18461351,103540.0,103530.0,0.25216001]
[1746877231230,1.18561351,103540.0,103530.0,0.25316001]
[1746877231429,1.18561351,103540.0,103530.0,0.19096001]
[1746877231828,1.18561351,103540.0,103530.0,0.17096001]
[1746877232839,1.18661351,103540.0,103530.0,0.17096001]
[1746877233542,1.18661351,103540.0,103530.0,0.16996001]
[1746877236441,1.86811351,103540.0,103530.0,0.16996001]
[1746877239347,1.86811351,103540.0,103500.0,0.10396116]
[1746877239348,1.74548256,103540.0,103500.0,0.10396116]
[1746877239541,0.98529105,103510.0,103500.0,0.82796116]
[1746877239850,1.22081105,103510.0,103500.0,0.46796116]
[1746877240148,1.31481105,103510.0,103500.0,0.63396116]
[1746877240549,1.31481105,103510.0,103500.0,0.63496116]
[1746877240949,1.45053105,103510.0,103500.0,0.63496116]
[1746877241145,1.45053105,103510.0,103500.0,0.63396116]
[1746877241445,1.45253105,103510.0,103500.0,0.63496116]
[1746877241943,1.7530331,103510.0,103500.0,0.54096116]
[1746877243839,2.4345331,103510.0,103500.0,0.54096116]
[1746877244059,2.4345331,103510.0,103500.0,0.48320756]
[1746877244345,0.1932263,103490.0,103480.0,0.14]
[1746877244540,0.193245,103480.0,103470.0,0.09826231]
[1746877244746,0.69004705,103480.0,103470.0,0.38826231]
[1746877244950,0.75004705,103480.0,103470.0,0.58152601]
[1746877245149,0.75004705,103480.0,103470.0,0.55426231]
[1746877245452,0.9905491,103480.0,103470.0,0.42996231]
[1746877245848,0.849545,103480.0,103470.0,0.42996231]
[1746877246044,0.95723079,103480.0,103470.0,0.42996231]
[1746877246655,0.72723079,103480.0,103470.0,0.97312601]
[1746877246950,0.72723079,103480.0,103470.0,0.68482601]
[1746877247151,1.01919079,103480.0,103470.0,0.68482601]
[1746877247351,0.99919079,103480.0,103470.0,0.68482601]
[1746877247750,1.00919079,103480.0,103470.0,0.68482601]
[1746877248046,1.00919079,103480.0,103470.0,0.49156231]
[1746877248252,1.01019079,103480.0,103470.0,0.49156231]
[1746877248451,1.01019079,103480.0,103470.0,0.68502768]
[1746877248763,1.01019079,103480.0,103470.0,0.49176398]
[1746877249252,0.4383,103480.0,103470.0,0.68502768]
[1746877249453,0.589245,103480.0,103470.0,1.15271347]
[1746877249752,0.589245,103480.0,103470.0,0.89271347]
[1746877249952,0.589245,103480.0,103470.0,1.08271347]
[1746877250155,0.556045,103480.0,103470.0,1.08271347]
[1746877250547,0.556045,103480.0,103470.0,1.17935347]
[1746877250853,0.556045,103480.0,103470.0,1.42935347]
[1746877251356,0.556045,103480.0,103470.0,1.17935347]
[1746877252352,0.195245,103480.0,103470.0,1.54015347]
[1746877252560,0.195245,103480.0,103470.0,1.43246768]
[1746877252750,0.194245,103480.0,103470.0,1.54015347]
[1746877253054,0.195245,103480.0,103470.0,1.54015347]
[1746877253649,0.194245,103480.0,103470.0,1.54015347]
[1746877253851,0.195245,103480.0,103470.0,1.54015347]
[1746877254044,0.195245,103480.0,103470.0,1.79015347]
[1746877255460,0.226245,103480.0,103470.0,1.79015347]
[1746877256357,0.225245,103480.0,103470.0,1.54015347]
[1746877256557,0.226245,103480.0,103470.0,1.54215347]
[1746877256755,0.226245,103480.0,103470.0,1.18135347]
[1746877257051,0.226245,103480.0,103470.0,1.54215347]
[1746877257256,0.226245,103480.0,103470.0,1.43446768]
[1746877257457,0.225245,103480.0,103470.0,1.54215347]
[1746877257657,0.226245,103480.0,103470.0,1.54215347]
[1746877258357,0.226245,103480.0,103470.0,1.18135347]
[1746877258962,0.226245,103480.0,103470.0,1.54215347]
[1746877259158,0.226245,103480.0,103470.0,1.18135347]
[1746877259350,0.033,103480.0,103470.0,1.18135347]
[1746877259557,0.226245,103480.0,103470.0,1.54215347]
[1746877260463,0.002,103480.0,103470.0,1.63879517]
[1746877260760,0.002,103480.0,103470.0,1.99648096]
[1746877260963,0.002,103480.0,103470.0,1.88879517]
[1746877261259,0.215245,103480.0,103470.0,1.27110938]
[1746877261465,0.227345,103480.0,103470.0,0.94702768]
[1746877261763,0.621145,103480.0,103470.0,0.94702768]
[1746877262456,0.86423079,103480.0,103470.0,0.63542768]
[1746877262660,0.86423079,103480.0,103470.0,0.62442768]
[1746877262661,0.97423079,103480.0,103470.0,0.62442768]
[1746877262857,0.873785,103480.0,103470.0,0.62442768]
[1746877263059,0.98147079,103480.0,103470.0,0.62442768]
[1746877263361,0.873785,103480.0,103470.0,0.62442768]
[1746877263660,0.763785,103480.0,103470.0,0.62442768]
[1746877264664,0.77361717,103480.0,103470.0,0.62442768]
[1746877265856,0.88130296,103480.0,103470.0,0.62442768]
[1746877266264,0.77361717,103480.0,103470.0,0.62442768]
[1746877266661,0.88130296,103480.0,103470.0,0.62442768]
[1746877266860,0.77361717,103480.0,103470.0,0.62442768]
[1746877268463,1.12130296,103480.0,103470.0,0.22116398]
[1746877270669,1.12130296,103480.0,103470.0,0.41442768]
[1746877270862,1.01361717,103480.0,103470.0,0.41442768]
[1746877271063,1.12130296,103480.0,103470.0,0.22116398]
[1746877271355,1.01361717,103480.0,103470.0,0.22116398]
[1746877271560,1.12130296,103480.0,103470.0,0.22116398]
[1746877272159,0.63821717,103480.0,103470.0,0.41442768]
[1746877272366,0.91141717,103480.0,103470.0,0.22116398]
[1746877272571,0.91141717,103480.0,103470.0,0.41442768]
[1746877273062,1.01910296,103480.0,103470.0,0.22116398]
[1746877273257,1.01910296,103480.0,103470.0,0.41442768]
[1746877273458,0.91141717,103480.0,103470.0,0.41442768]
[1746877273662,1.01910296,103480.0,103470.0,0.41442768]
[1746877274674,0.77373717,103480.0,103470.0,0.41442768]
[1746877274872,0.91169717,103480.0,103470.0,0.41442768]
[1746877275666,0.77649717,103480.0,103470.0,0.44432768]
[1746877276868,0.77645717,103480.0,103470.0,0.44432768]
[1746877277069,0.77645717,103480.0,103470.0,0.47722768]
[1746877277276,0.77645717,103480.0,103470.0,0.50942768]
[1746877278171,0.88414296,103480.0,103470.0,0.41442768]
[1746877278966,0.77645717,103480.0,103470.0,0.41442768]
[1746877279167,0.88414296,103480.0,103470.0,0.41442768]
[1746877279374,0.77645717,103480.0,103470.0,0.41442768]
[1746877279576,0.88414296,103480.0,103470.0,0.41442768]
[1746877282378,0.88414296,103480.0,103470.0,0.42442768]
[1746877282566,0.77645717,103480.0,103470.0,0.42442768]
[1746877282765,0.88414296,103480.0,103470.0,0.42442768]
[1746877283677,0.91444296,103480.0,103470.0,0.42442768]
[1746877283865,0.91444296,103480.0,103470.0,0.48602768]
[1746877284373,0.91444296,103480.0,103470.0,0.42442768]
[1746877285574,0.98444296,103480.0,103470.0,0.42442768]
[1746877286578,0.91444296,103480.0,103470.0,0.42442768]
[1746877288780,1.27444296,103480.0,103470.0,0.42442768]
[1746877288981,0.91444296,103480.0,103470.0,0.42442768]
[1746877289374,0.80675717,103480.0,103470.0,0.42442768]
[1746877289568,0.91444296,103480.0,103470.0,0.42442768]
[1746877290982,0.92444296,103480.0,103470.0,0.42442768]
[1746877291182,0.92444296,103480.0,103470.0,0.45442768]
[1746877292281,0.92444296,103480.0,103470.0,0.51712768]
[1746877294083,0.92444296,103480.0,103470.0,0.42442768]
[1746877295681,0.88741616,103480.0,103470.0,0.42442768]
[1746877295984,0.88741616,103480.0,103470.0,0.45442768]
[1746877296183,0.88741616,103480.0,103470.0,0.48612768]
[1746877300687,0.88741616,103480.0,103470.0,0.42442768]
[1746877301183,0.88741616,103480.0,103470.0,0.45442768]
[1746877301979,0.87741616,103480.0,103470.0,0.45442768]
[1746877302385,0.87741616,103480.0,103470.0,0.42442768]
[1746877302581,0.94807515,103480.0,103470.0,0.23116398]
[1746877302883,1.00675717,103480.0,103470.0,0.22116398]
[1746877303189,1.14807515,103480.0,103470.0,0.22116398]
[1746877303376,1.00675717,103480.0,103470.0,0.22116398]
[1746877303575,1.14807515,103480.0,103470.0,0.22116398]
[1746877304878,1.00675717,103480.0,103470.0,0.22116398]
[1746877305085,1.14807515,103480.0,103470.0,0.22116398]
[1746877305787,1.07741616,103480.0,103470.0,0.41442768]
[1746877305994,0.87741616,103480.0,103470.0,0.64442768]
[1746877306385,0.87741616,103480.0,103470.0,0.67442768]
[1746877306594,0.87741616,103480.0,103470.0,0.44442768]
[1746877306794,0.87741616,103480.0,103470.0,0.46442768]
[1746877308786,0.87741616,103480.0,103470.0,0.44442768]
[1746877309190,0.80675717,103480.0,103470.0,0.44442768]
[1746877309391,0.87741616,103480.0,103470.0,0.44442768]
[1746877311182,0.80675717,103480.0,103470.0,0.49442768]
[1746877311389,0.87741616,103480.0,103470.0,0.55932768]
[1746877313398,0.87741616,103480.0,103470.0,0.52672768]
[1746877313792,0.80675717,103480.0,103470.0,0.52672768]
[1746877313988,0.87741616,103480.0,103470.0,0.52672768]
[1746877316096,0.80675717,103480.0,103470.0,0.52672768]
[1746877316292,0.87741616,103480.0,103470.0,0.55952768]
[1746877316696,0.73917616,103480.0,103470.0,0.55952768]
[1746877316999,0.80583717,103480.0,103470.0,0.55952768]
[1746877317303,0.87649616,103480.0,103470.0,0.55952768]
[1746877317503,0.87649616,103480.0,103470.0,0.65952768]
[1746877317907,0.80583717,103480.0,103470.0,0.65952768]
[1746877318199,0.234585,103480.0,103470.0,0.94018667]
[1746877318407,0.234585,103480.0,103470.0,0.79018667]
[1746877318599,0.234585,103480.0,103470.0,1.14018667]
[1746877319402,0.234585,103480.0,103470.0,1.40412736]
[1746877319608,0.234585,103480.0,103470.0,1.33346837]
[1746877323107,0.04134,103480.0,103470.0,1.33346837]
[1746877323308,0.234585,103480.0,103470.0,1.33346837]
[1746877328016,0.234585,103480.0,103470.0,1.16616938]
[1746877328314,0.267785,103480.0,103470.0,1.23682837]
[1746877328815,0.267785,103480.0,103470.0,0.94018667]
[1746877329015,0.298285,103480.0,103470.0,0.74692297]
[1746877329316,0.298285,103480.0,103470.0,0.71412297]
[1746877329516,0.298285,103480.0,103470.0,0.58116398]
[1746877329703,0.36894399,103480.0,103470.0,0.58116398]
[1746877329909,0.857245,103480.0,103470.0,0.43116398]
[1746877330108,0.92790399,103480.0,103470.0,0.43116398]
[1746877330817,0.92790399,103480.0,103470.0,0.20116398]
[1746877331017,0.857245,103480.0,103470.0,0.20116398]
[1746877331215,0.92790399,103480.0,103470.0,0.20116398]
[1746877331415,1.11790399,103480.0,103470.0,0.20116398]
[1746877331809,1.047245,103480.0,103470.0,0.20116398]
[1746877335224,0.797245,103480.0,103470.0,0.20116398]
[1746877335420,0.807245,103480.0,103470.0,0.20116398]
[1746877335919,0.807245,103480.0,103470.0,0.30116398]
[1746877336319,0.808085,103480.0,103470.0,0.30116398]
[1746877337720,0.91575796,103480.0,103470.0,0.30116398]
[1746877338111,0.97575796,103480.0,103470.0,0.30116398]
[1746877338312,1.25575796,103480.0,103470.0,0.30116398]
[1746877344122,1.25575796,103480.0,103470.0,0.20116398]
[1746877345619,1.25575796,103480.0,103470.0,0.15949038]
[1746877345820,1.25575796,103480.0,103470.0,0.12970858]
[1746877346031,1.25575796,103480.0,103470.0,0.09970858]
[1746877347930,1.148085,103480.0,103470.0,0.09970858]
[1746877348229,1.25575796,103480.0,103470.0,0.09970858]
[1746877348926,0.95575796,103480.0,103470.0,0.10970858]
[1746877349128,1.12575796,103480.0,103470.0,0.10970858]
[1746877351732,1.15942822,103480.0,103470.0,0.10970858]
[1746877352133,1.15942822,103480.0,103470.0,0.09970858]
[1746877354630,0.935965,103480.0,103470.0,0.11970858]
[1746877354832,1.05663661,103480.0,103470.0,0.11970858]
[1746877355738,0.985965,103480.0,103470.0,0.11970858]
[1746877356037,1.05663661,103480.0,103470.0,0.11970858]
[1746877356333,1.05663661,103480.0,103470.0,0.14960858]
[1746877356534,1.05663661,103480.0,103470.0,0.18090858]
[1746877356737,1.05663661,103480.0,103470.0,0.21130691]
[1746877356928,0.986325,103480.0,103470.0,0.21130691]
[1746877357128,1.05699661,103480.0,103470.0,0.21130691]
[1746877357937,1.00699661,103480.0,103470.0,0.21130691]
[1746877358136,0.628585,103480.0,103470.0,0.49524222]
[1746877358537,0.595385,103480.0,103470.0,0.93524222]
[1746877359137,0.595385,103480.0,103470.0,0.93544389]
[1746877359536,0.628585,103480.0,103470.0,0.93544389]
[1746877359740,0.628585,103480.0,103470.0,0.97241467]
[1746877360840,0.628585,103480.0,103470.0,0.86477228]
[1746877361339,0.628585,103480.0,103470.0,0.63477228]
[1746877364644,0.968585,103480.0,103470.0,0.44150858]
[1746877364829,1.10772739,103480.0,103470.0,0.44150858]
[1746877365033,1.10772739,103480.0,103470.0,0.23970858]
[1746877365636,1.10772739,103480.0,103470.0,0.15830978]
[1746877365835,1.10772739,103480.0,103470.0,0.01830978]
[1746877366849,1.000085,103480.0,103470.0,0.01830978]
[1746877367145,1.000085,103480.0,103470.0,0.02830978]
[1746877367146,0.790085,103480.0,103470.0,0.02830978]
[1746877367542,0.91772739,103480.0,103470.0,0.02830978]
[1746877368947,0.92772739,103480.0,103470.0,0.02830978]
[1746877370138,1.095925,103480.0,103470.0,0.08920978]
[1746877370342,0.935925,103480.0,103470.0,0.08920978]
[1746877370640,1.04356739,103480.0,103470.0,0.08920978]
[1746877370846,1.05356739,103480.0,103470.0,0.08920978]
[1746877371847,1.05356739,103480.0,103470.0,0.05820978]
[1746877372551,1.05356739,103480.0,103470.0,0.25147348]
[1746877372552,0.945725,103480.0,103470.0,0.25147348]
[1746877372757,0.670085,103480.0,103470.0,0.31437348]
[1746877373052,0.628585,103480.0,103470.0,0.46437348]
[1746877373349,0.766025,103480.0,103470.0,0.46437348]
[1746877373853,0.798425,103480.0,103470.0,0.46437348]
[1746877374948,0.660985,103480.0,103470.0,0.46437348]
[1746877375253,0.798585,103480.0,103470.0,0.27110978]
[1746877375438,0.798585,103480.0,103470.0,0.43397348]
[1746877375645,0.90622739,103480.0,103470.0,0.43397348]
[1746877376341,0.76862739,103480.0,103470.0,0.43397348]
[1746877376544,0.766145,103480.0,103470.0,0.46527348]
[1746877377849,0.798245,103480.0,103470.0,0.46527348]
[1746877378151,0.660685,103480.0,103470.0,0.46527348]
[1746877379751,0.660685,103480.0,103470.0,0.45527348]
[1746877380360,0.76832739,103480.0,103470.0,0.45527348]
[1746877380557,0.76832739,103480.0,103470.0,0.36157348]
[1746877381855,0.92832739,103480.0,103470.0,0.22157348]
[1746877382151,0.92832739,103480.0,103470.0,0.02830978]
[1746877383152,1.07832739,103480.0,103470.0,0.02830978]
[1746877383354,1.08026013,103480.0,103470.0,0.01830978]
[1746877383953,1.35582013,103480.0,103470.0,0.01830978]
[1746877385356,1.24817774,103480.0,103470.0,0.01830978]
[1746877385558,1.35582013,103480.0,103470.0,0.01830978]
[1746877386955,1.35482013,103480.0,103470.0,0.01830978]
[1746877387156,1.35682013,103480.0,103470.0,0.01830978]
[1746877388456,1.35482013,103480.0,103470.0,0.01830978]
[1746877388756,1.35682013,103480.0,103470.0,0.01830978]
[1746877389150,1.35582013,103480.0,103470.0,0.01730978]
[1746877389354,1.35682013,103480.0,103470.0,0.01830978]
[1746877390361,1.24917774,103480.0,103470.0,0.01830978]
[1746877390562,1.35746013,103480.0,103470.0,0.01830978]
[1746877394356,1.04746013,103480.0,103470.0,0.03830978]
[1746877394556,1.23746013,103480.0,103470.0,0.03830978]
[1746877395759,1.27115164,103480.0,103470.0,0.03830978]
[1746877395960,0.99495164,103480.0,103470.0,0.03830978]
[1746877396160,1.20080469,103480.0,103470.0,0.03830978]
[1746877401565,1.13013774,103480.0,103470.0,0.03830978]
[1746877401759,1.20080469,103480.0,103470.0,0.03830978]
[1746877403359,1.27147164,103480.0,103470.0,0.03830978]
[1746877403972,1.20080469,103480.0,103470.0,0.03830978]
[1746877405569,1.20080469,103480.0,103470.0,0.01830978]
[1746877406265,0.84000469,103480.0,103470.0,0.01830978]
[1746877406461,1.56160469,103480.0,103470.0,0.01830978]
[1746877407871,1.63227164,103480.0,103470.0,0.01830978]
[1746877408771,1.56160469,103480.0,103470.0,0.01830978]
[1746877409068,1.63227164,103480.0,103470.0,0.01830978]
[1746877409270,1.56160469,103480.0,103470.0,0.01830978]
[1746877410167,1.63227164,103480.0,103470.0,0.01830978]
[1746877414681,1.63227164,103480.0,103470.0,0.02830978]
[1746877419989,1.49093774,103480.0,103470.0,0.02830978]
[1746877420295,1.63227164,103480.0,103470.0,0.02830978]
[1746877421898,1.49093774,103480.0,103470.0,0.02830978]
[1746877422291,1.63227164,103480.0,103470.0,0.02830978]
[1746877423099,1.49093774,103480.0,103470.0,0.02830978]
[1746877423302,1.56160469,103480.0,103470.0,0.02830978]
[1746877423796,1.63227164,103480.0,103470.0,0.02830978]
[1746877427100,1.63227164,103480.0,103470.0,0.01830978]
[1746877428110,1.49093774,103480.0,103470.0,0.01830978]
[1746877428298,1.63227164,103480.0,103470.0,0.01830978]
[1746877432399,1.49093774,103480.0,103470.0,0.01830978]
[1746877432707,1.63227164,103480.0,103470.0,0.01830978]
[1746877435299,1.35253774,103480.0,103470.0,0.02830978]
[1746877435494,1.56292469,103480.0,103470.0,0.28307348]
[1746877435698,1.56292469,103480.0,103470.0,0.12050978]
[1746877436310,1.56292469,103480.0,103470.0,0.12030811]
[1746877436709,1.32043774,103480.0,103470.0,0.31357181]
[1746877436899,1.14911774,103480.0,103470.0,0.38423876]
[1746877437210,1.28883774,103480.0,103470.0,0.72423876]
[1746877437704,0.18395274,103480.0,103470.0,0.66423876]
[1746877437908,0.23751774,103480.0,103470.0,1.33503876]
[1746877438206,0.01217274,103480.0,103470.0,1.43167876]
[1746877438805,0.01217274,103480.0,103470.0,1.84918908]
[1746877439002,0.2261077,103500.0,103490.0,0.1932263]
[1746877439202,0.2261077,103500.0,103490.0,1.1640263]
[1746877439495,0.2261077,103500.0,103490.0,1.2567263]
[1746877439899,0.22804006,103500.0,103490.0,1.2567263]
[1746877440109,0.62054006,103500.0,103490.0,1.0619263]
[1746877440697,0.62054006,103500.0,103490.0,0.8519263]
[1746877441611,0.62954006,103500.0,103490.0,0.8519263]
[1746877442312,0.62554006,103500.0,103490.0,0.8519263]
[1746877442609,0.62654006,103500.0,103490.0,0.8549263]
[1746877442812,0.62254006,103500.0,103490.0,0.8569263]
[1746877443015,0.59084006,103500.0,103490.0,0.8569263]
[1746877443508,0.59084006,103500.0,103490.0,0.92759325]
[1746877446002,0.59084006,103500.0,103490.0,1.13759325]
[1746877447306,0.62314006,103500.0,103490.0,1.13759325]
[1746877448508,0.59084006,103500.0,103490.0,1.13759325]
[1746877448718,0.59084006,103500.0,103490.0,0.79759325]
[1746877449603,0.62244006,103500.0,103490.0,0.79759325]
[1746877449804,0.69310701,103500.0,103490.0,0.7269263]
[1746877449998,0.65554006,103500.0,103490.0,0.7269263]
[1746877450204,0.67554006,103500.0,103490.0,0.7269263]
[1746877450404,0.67554006,103500.0,103490.0,0.79759325]
[1746877450611,0.65554006,103500.0,103490.0,1.07759325]
[1746877450810,0.62244006,103500.0,103490.0,1.07759325]
[1746877456110,0.62244006,103500.0,103490.0,1.0069263]
[1746877456307,0.62244006,103500.0,103490.0,1.07759325]
[1746877458009,0.83244006,103500.0,103490.0,0.80759325]
[1746877458716,0.62244006,103500.0,103490.0,0.80759325]
[1746877458907,0.65284006,103500.0,103490.0,0.80759325]
[1746877462819,0.65284006,103500.0,103490.0,0.7369263]
[1746877463022,0.65284006,103500.0,103490.0,0.80759325]
[1746877463316,0.65284006,103500.0,103490.0,0.77759325]
[1746877463515,0.65284006,103500.0,103490.0,1.09759325]
[1746877464216,0.65284006,103500.0,103490.0,1.0269263]
[1746877464621,0.65284006,103500.0,103490.0,1.09759325]
[1746877469021,0.65284006,103500.0,103490.0,1.0269263]